Cogmind - Beta 16 @@@ ROGUE MODE // 2025.10.26 @ 13:31:43 Player: KeKe Result: Destroyed by LT-RTX(R) with Subdweller Laser Performance ------------- Evolutions (0) 0 Regions Visited (2) 400 Robots Destroyed (21) 105 Value Destroyed (628) 628 Prototype IDs (12) 240 Alien Tech Used (0) 0 Bonus (0) 0 TOTAL SCORE: 1373 Bonus ------- None Cogmind --------- Core Integrity 0/250 Matter 280/300 Energy 100/100 System Corruption 0% Temperature Cool (6) Movement Rolling (95) Ox1 Location -10/Subcaves Parts ------- > --- POWER (1) -------- (None) > --- PROPULSION (2) --- Wheel Wheel > --- UTILITY (2) ------ Large Storage Unit Light Armor Plating > --- WEAPON (2) ------- Heavy Hammer > --- INVENTORY (15) --- Subdweller Monowheel Medium Matter Pod (100) Seismic Detector Light Armor Plating Power Bank Shrapnel Trap Peak State ------------ > --- POWER ------------ Ion Engine Light Ion Engine > --- PROPULSION ------- Light Treads Light Treads Wheel Wheel > --- UTILITY ---------- Large Storage Unit Light Armor Plating Tower Shield > --- WEAPON ----------- Assault Rifle Light Assault Rifle Grenade Launcher Heavy Hammer > --- INVENTORY -------- Light Treads Subdweller Monowheel Medium Matter Pod Seismic Detector Light Armor Plating Light Armor Plating Power Bank Shrapnel Trap [Rating: 34] Favorites ----------- Power Ion Engine Engine Ion Engine Propulsion Light Treads Treads Light Treads Leg Aluminum Leg Wheel Wheel Utility Light Armor Plating Device Seismic Detector Storage Large Storage Unit Protection Light Armor Plating Weapon Assault Rifle Energy Gun EM Pulse Gun Ballistic Gun Assault Rifle Launcher Grenade Launcher Impact Weapon Heavy Hammer Build | -11 -10 -10 ------- Run | Yrd Mat Sub Slots Evolved . | . . . Power . | . . . Propulsion . | . . . Utility . | . . . Weapon . | . . . Parts Attached 18 | 4 5 9 Power 3 | . 2 1 Engine 3 | . 2 1 Core . | . . . Reactor . | . . . Propulsion 5 | 2 1 2 Treads 3 | 2 1 . Leg . | . . . Wheel 2 | . . 2 Hover . | . . . Flight . | . . . Utility 6 | 1 2 3 Device 1 | 1 . . Storage 1 | . 1 . Processor . | . . . Hackware . | . . . Protection 4 | . 1 3 Artifact . | . . . Weapon 4 | 1 . 3 Energy Gun . | . . . Energy Cannon . | . . . Ballistic Gun 2 | 1 . 1 Ballistic Cannon . | . . . Launcher 1 | . . 1 Special Weapon . | . . . Impact Weapon 1 | . . 1 Slashing Weapon . | . . . Piercing Weapon . | . . . Special Melee Weapon . | . . . Unidentified Prototypes . | . . . Parts Lost 3 | . . 3 Power 1 | . . 1 Propulsion . | . . . Utility 1 | . . 1 Weapon 1 | . . 1 Highest Loss Streak 2 | . . 2 To Critical Strikes . | . . . Average Backups 6 | 4 8 6 Power . | 1 . . Propulsion 1 | 2 2 1 Utility 3 | . 3 4 Weapon . | . 1 . Tool/Special . | . . . Unused Backups 13 | 2 8 3 Power 2 | . 2 . Propulsion 2 | . 1 1 Utility 5 | . 3 2 Weapon 4 | 2 2 . Tool/Special . | . . . Average Slot Usage (%) 93 | . 100 89 Engine 12 | . 14 11 Treads 16 | . 28 11 Wheel 10 | . . 16 Device 1 | . 5 . Storage 11 | . 14 10 Protection 12 | . 8 13 Ballistic Gun 15 | . 28 9 Launcher 4 | . . 7 Impact Weapon 5 | . . 8 Peak Build Rating 34 | 7 8 34 Average Rating 16 | 6 7 21 On Entrance 7 | 6 7 8 Avg Prop Armor Cover (%) 3 | . . 3 Naked Turns . | . . . Heaviest Build 78 | 14 31 78 Greatest Support 40 | 40 40 40 Greatest Overweight (x) 3 | . . 3 Average Overweight (x) 1 | . . 1 Largest Inventory Capacity 15 | 8 15 15 Average Capacity 13 | 8 11 14 Most Carried 11 | 6 10 11 Average Carried 7 | 4 8 7 Final Capacity 15 | 8 15 15 Final Carried 10 | 6 10 6 Class Distribution -------------------- 64% | Mutant 35% | Tank Dominant Class ---------------- Mutant | -10/Materials Tank | -10/Subcaves Resources | -11 -10 -10 ----------- Run | Yrd Mat Sub Matter Collected 932 | 280 179 473 Remotely . | . . . Salvage Created 585 | 130 330 125 Parts 40 | 9 19 12 Haulers Intercepted . | . . . Recyclers Shooed 1 | 1 . . Parts Field Recycled . | . . . Retrieved Matter . | . . . Parts Self-Destructed 5 | . . 5 Prevented . | . . . Parts Restored . | . . . Kills | -11 -10 -10 ------- Run | Yrd Mat Sub Combat Hostiles Destroyed 18 | . 8 10 Melee 2 | . . 2 Guns 9 | . 8 1 AOE 7 | . . 7 Classes Destroyed 5 | 2 1 2 Tunneler 2 | 2 . . Recycler 1 | 1 . . Swarmer 3 | . . 3 Grunt 8 | . 8 . Subdweller 7 | . . 7 Best Kill Streak 3 | 1 3 3 Combat Bots Only 3 | . 3 3 Max Kills in Single Turn 2 | 1 1 2 Gunslinging . | . . . Exploded 2 | . . 2 Melee 1 | . . 1 Uniques/NPCs Destroyed . | . . . Combat | -11 -10 -10 -------- Run | Yrd Mat Sub Hostile Shots Fired 126 | . 67 59 Missed 30 | . 18 12 Hits 96 | . 49 47 Projectile 96 | . 49 47 AOE 4 | . . 4 Critical Strikes 3 | . 3 . Damage Taken 1494 | . 619 875 Core 263 | . 106 157 Absorbed by Shields . | . . . Core Remaining (%) 100 | 100 . . Volleys Fired 58 | 10 33 15 Largest 3 | 2 2 3 Hottest 70 | 40 40 70 Shots Fired 124 | 20 66 38 Gun 110 | 20 66 24 Cannon . | . . . Launcher 14 | . . 14 Special . | . . . Kinetic 110 | 20 66 24 Thermal . | . . . Explosive 14 | . . 14 Electromagnetic . | . . . Robot Hit Streak 8 | 7 8 7 Robot Miss Streak 5 | 2 5 2 Penetration Max . | . . . Secondary Targets 2 | . 2 . Max Gunslinging Chain 1 | . 1 . Shots Hit Robots 83 | 12 36 35 Core Hits 37 | 5 17 15 Critical Kills 1 | . . 1 Critical Parts Destroyed 1 | . 1 . Critical Strikes 4 | . 1 3 Destroy 2 | . 1 1 Smash 2 | . . 2 Melee Attacks 49 | . . 49 Impact 49 | . . 49 Slashing . | . . . Piercing . | . . . Sneak Attacks . | . . . Combat Hostiles . | . . . Follow-up Attacks . | . . . Damage Inflicted 1935 | 132 375 1428 Guns 669 | 132 375 162 Cannons . | . . . Explosions 890 | . . 890 Melee 376 | . . 376 Ramming . | . . . Kinetic 669 | 132 375 162 Thermal . | . . . Explosive 890 | . . 890 Electromagnetic . | . . . Impact 376 | . . 376 Slashing . | . . . Piercing . | . . . Highest Corruption . | . . . Average Corruption . | . . . Corruption Purged . | . . . Corruption Blocked . | . . . Overload Shots . | . . . Overflow Damage 51 | . . 51 Projectiles . | . . . Explosions 36 | . . 36 Melee 15 | . . 15 Knockbacks 1 | . . 1 Impact 1 | . . 1 Kinetic . | . . . Secondary . | . . . Self-Inflicted Damage 3 | . . 3 Shots 1 | . . 1 Rammed . | . . . Targets Rammed . | . . . Kicked . | . . . Crushed . | . . . Highest Temperature 173 | . 173 5 Average Temperature 48 | . 49 5 Received Heat Transfer 540 | . 408 132 Siege Activations . | . . . Martial Activations . | . . . Shielding Activations . | . . . Robots Disrupted . | . . . Combat Hostiles . | . . . Robots Corrupted . | . . . Combat Hostiles . | . . . Parts Fried . | . . . Impact Corruptions 2 | . . 2 Robots Melted . | . . . Combat Hostiles . | . . . Parts Melted . | . . . Heat Transferred . | . . . Parts Sabotaged . | . . . Parts Stolen . | . . . Parts Stripped . | . . . Power Chain Reactions . | . . . Alert | -11 -10 -10 ------- Run | Yrd Mat Sub Maximum Alert Level . | . . . Low Security (%) 100 | 100 100 . Level 1 . | . . . Level 2 . | . . . Level 3 . | . . . Level 4 . | . . . Level 5 . | . . . High Security . | . . . Max Security . | . . . Peak Influence 80 | 5 80 . Initial . | . . . Average 15 | . 17 . Influence Increases 320 | 15 200 105 Destroy 0b10 Robot/C 220 | . 160 60 Destroy 0b10 Robot/NC 15 | 15 . . Destroy Leader 40 | . 40 . Lose Combat Pursuer 45 | . . 45 Influence Decreases 286 | 15 188 83 Entered New Map 7 | . . 7 Time Decay 259 | 15 188 56 Lost Part 20 | . . 20 Squads Dispatched 2 | . 2 . Investigation . | . . . Extermination . | . . . Reinforcement 2 | . 2 . Assault . | . . . Garrison . | . . . Intercept . | . . . Searches Triggered . | . . . Construction Impeded . | . . . Haulers Reinforced . | . . . Active Scanning Responses . | . . . Cargo Convoy Interrupts . | . . . Stealth | -11 -10 -10 --------- Run | Yrd Mat Sub Distress Signals . | . . . Communications Jammed . | . . . Distress Signals . | . . . Times Spotted 28 | . 16 12 Peak Tracking Total 5 | . 4 5 Tactical Retreats 1 | . . 1 Traps | -11 -10 -10 ------- Run | Yrd Mat Sub Traps Triggered . | . . . Indirectly . | . . . Trap Hack Attempts . | . . . Triggered . | . . . Disarmed . | . . . Reprogrammed . | . . . Reused . | . . . Traps Extracted . | . . . Installed . | . . . Triggered . | . . . Most Traps Carried 1 | . . 1 Machines | -11 -10 -10 ---------- Run | Yrd Mat Sub Machines Disabled 1 | . . 1 Max in Single Turn 1 | . . 1 Machines Repaired . | . . . Machines Dismantled . | . . . Machines Sabotaged . | . . . Overloaded Fab Kills . | . . . Hacking | -11 -10 -10 --------- Run | Yrd Mat Sub Machines Accessed 1 | . . 1 Terminals . | . . . Fabricators . | . . . Repair Stations . | . . . Recycling Units . | . . . Scanalyzers . | . . . Garrison Access . | . . . Total Hacks 1 | . . 1 Successful 1 | . . 1 Failed . | . . . Catastrophic . | . . . Database Lockouts . | . . . Manual . | . . . Terminals . | . . . Fabricators . | . . . Repair Stations . | . . . Recycling Units . | . . . Scanalyzers . | . . . Garrison Access . | . . . Terminal Hacks 1 | . . 1 Proto ID Catalog 1 | . . 1 Fabricator Hacks . | . . . Repair Station Hacks . | . . . Recycling Unit Hacks . | . . . Scanalyzer . | . . . Garrison Access Hacks . | . . . Unauthorized Hacks . | . . . Terminals . | . . . Fabricators . | . . . Repair Stations . | . . . Recycling Units . | . . . Scanalyzers . | . . . Garrison Access . | . . . Data Cores Recovered . | . . . Used . | . . . Hacking Detections . | . . . Full Trace Events . | . . . Feedback Events . | . . . Feedback Blocked . | . . . Robot Schematics Acquired . | . . . Robots Built . | . . . Authchips . | . . . Time . | . . . Total Robot Build Rating . | . . . Part Schematics Acquired . | . . . Parts Built . | . . . Authchips . | . . . Time . | . . . Total Part Build Rating . | . . . Part Studies Acquired . | . . . Parts Repaired . | . . . Time . | . . . Parts Recycled . | . . . Recycled Matter . | . . . Retrieved Matter . | . . . Retrieved Components . | . . . Parts Scanalyzed . | . . . Part Schematics Acquired . | . . . Parts Damaged . | . . . Bothacking | -11 -10 -10 ------------ Run | Yrd Mat Sub Used RIF Installer . | . . . Robots Hacked . | . . . Non-combat . | . . . Combat . | . . . Robot Hacks Applied . | . . . Relay Couplers Released . | . . . Fabnet Peak Effective % . | . . . Robots Rewired . | . . . Allies Hacked . | . . . Hacks Repelled . | . . . Allies | -11 -10 -10 -------- Run | Yrd Mat Sub Total Allies . | . . . Largest Group . | . . . Highest-Rated Group . | . . . Highest-Rated Ally . | . . . Total Orders . | . . . Ally Attacks . | . . . Total Damage . | . . . Kills . | . . . Allies Corrupted . | . . . Allies Melted . | . . . Intel | -11 -10 -10 ------- Run | Yrd Mat Sub Active Infowar (turns) 334 | 30 304 . Seismic 334 | 30 304 . Robot Analysis Total . | . . . Derelict Logs Recovered 1 | . . 1 Drone Launches . | . . . Drone Recoveries . | . . . Exploration | -11 -10 -10 ------------- Run | Yrd Mat Sub Turns Passed 2732 | 116 843 1773 Spaces Moved 1778 | 44 436 1298 Core . | . . . Treads 647 | 44 436 167 Legs . | . . . Wheels 1131 | . . 1131 Hover . | . . . Flight . | . . . Fastest Speed 80 | 160 160 80 Average Speed 130 | 160 160 119 Slowest Speed 240 | 160 160 240 Overloaded Moves . | . . . Propulsion Burnouts . | . . . Robots Hopped . | . . . Potential Cave-ins . | . . . Cave-ins Triggered . | . . . Exploration Rate (%) 53 | 4 85 70 Regions Visited 2 Branch Regions 1 Pre-discovered Areas . | . . . Known Exits Taken . | . . . Unknown Exits Taken 2 | 1 1 . Scrap Searched 8 | . . 8 Spaces Dug 17 | . . 17 Terrain Destroyed 59 | . . 59 Melee 17 | . . 17 Projectile . | . . . AOE 42 | . . 42 Terrain Rammed . | . . . Walls Destroyed . | . . . Machines Disabled . | . . . Actions | -11 -10 -10 --------- Run | Yrd Mat Sub Total 2004 | 72 524 1408 Wait 64 | 9 36 19 Move 1776 | 43 435 1298 Hop . | . . . Pick Up 20 | 3 8 9 Fast Attach 8 | 1 . 7 Attach 5 | 2 . 3 Detach . | . . . Swap 11 | 1 5 5 Drop 13 | 3 7 3 Fire 58 | 10 33 15 Melee 49 | . . 49 Ram . | . . . Kick . | . . . Crush . | . . . Escape Stasis . | . . . Rewire . | . . . Trap . | . . . Miscellaneous . | . . . Route ------- -11/Scrapyard -10/Materials (discovered 6 exits: [*Mat x3] / [*Min x2] / *Sub) -10/Subcaves (discovered 2 exits: [*Mat x2]) History --------- Turn | Location | Event 23 | -11/Scrapyard | Discovered new exit (range 3) 117 | -11/Scrapyard | Entered Materials 190 | -10/Materials | Discovered new exit (range 12) 304 | -10/Materials | Build established: Mutant 370 | -10/Materials | Discovered new exit (range 8) 529 | -10/Materials | Discovered new exit (range 13) 614 | -10/Materials | Discovered new exit (range 5) 815 | -10/Materials | Discovered new exit (range 4) 944 | -10/Materials | Discovered new exit (range 5) 960 | -10/Materials | Entered Subcaves 1204 | -10/Subcaves | Visited 4L-MR0's lab 1226 | -10/Subcaves | Found Tower Shield 1227 | -10/Subcaves | Attached Tower Shield, gained temporary slots: Power, Propulsion x2, Utility x2, Weapon x2 1468 | -10/Subcaves | A swath of the cavern ceiling suddenly collapsed 1516 | -10/Subcaves | Build established: Tank 1785 | -10/Subcaves | Learned Materials stockpile data 1830 | -10/Subcaves | A Subdweller sparked back to life 1830 | -10/Subcaves | A Subdweller sparked back to life 1830 | -10/Subcaves | A Subdweller sparked back to life 1831 | -10/Subcaves | Core integrity fell below 50% 1854 | -10/Subcaves | Found Power Bank 1960 | -10/Subcaves | Discovered new exit (range 6) 2013 | -10/Subcaves | Discovered new exit (range 15) 2016 | -10/Subcaves | Core integrity fell below 20% 2342 | -10/Subcaves | Shifting Twisted Machinery released Battle Cannon 2343 | -10/Subcaves | Shifting Twisted Machinery released Sub. Optics 2467 | -10/Subcaves | Build established: Mutant 2733 | -10/Subcaves | Destroyed by LT-RTX(R) with Subdweller Laser Last Messages --------------- 02218_ Found 44 Matter. 02233_ Searching scrap... 02233_ Found Mak. System Restoration Module. 02233_ Found Spk. Treads. 02233_ Found 52 Matter. Battle Cannon falls loose from the Twisted Machinery. Sub. Optics falls loose from the Twisted Machinery. 02427_ S-10 Pest destroyed. 02428_ Ion Engine destroyed. 02429_ Destroyed Lgt. Ion Engine. 02429_ S-10 Pest destroyed. 02429_ Destroyed Flight Unit. 02429_ S-10 Pest destroyed. 02429_ Grenade Launcher destroyed. 02438_ Lgt. Assault Rifle fries itself beyond repair. 02726_ Destroyed Disposable Heat Sink. 02726_ BJ-FQB(R) system corrupted by crushing effect. 02729_ BJ-FQB(R) suffers critical hit (Smash). 02729_ BJ-FQB(R) misfires. 02731_ BJ-FQB(R) destroyed. Map ----- +----------------------------------------------------+ | "" ###"" #??????????????????????????????????? | | "" ###"" #??????????????????????????????????? | | ""### " #??????????????????????????????????? | | ###"## " ###??????????????????????????????????? | | #""""###" ##????????????????????????????????????? | | ""#?#" ##????????????????????????????????????? | | #####"### ###??????????????????????????????????? | | ###???## " ##???????????????????????????? ??? | | #????# " #????????????????????????????"""??? | | ## #????# """#???????????????????????????? """? | | #? #???## ##??????????????????????????? "?? | | ###" #???# ##???????????????????????????? ""? | | ###"##???## "#???????????????????????????? """? | | "##???# ##???????????????????????????? """? | | ##??# #???????????????????????????? "#?? | | #### #???????????????????????????? #?? | | ### ## #???????????????????????????? #?? | | ### #??????????????????????????## #??? | | #### ########?##???????????????## "" #???? | | ## ## ##"##"##"#??????????????## "#????? | | ### # ###?????????##### ##????? | | ##### " # "#????###### ##?????? | | #### ####### #"##??### ##??????? | | #####?# ##????#"######## ##???????? | | ##?????# #?????## ##;##R## ## ##????????? | | #?????## #?????##"##; @#""# ## #?????????? | | #????## #####?#;;; ;####" ### # ##?????????? | | ##???# #?#;#;#"#??####?#### ##??????????? | | ##??### #?##"#########?????###???????????? | | #??#### #??##" ###"""#???????????????????? | | ## ##### #???### ##"""##??????????????????? | | #???#####????##"#"#"#"##?????????????????? | | ##??####?????##""# #""#"#?????????????????? | | ###???# ##????#"#"###""""#?????????????????? | | ########### #????##""##"#""##?????????????????? | | ###### #?????#"""#"## "#?????????????????? | | ## #?????#"#"""# ###?????????????????? | | ###???#"##" #???????????????????? | | ## ###?##" ##"#??????????????????? | | #### ##?## #?##??????????????????? | | ### ### #??## #?????????????????????? | | ## ###### ####??#"##"#????????????????????? | | ##??###?????##??##????????????????????? | | ##???????????????????????????????????# | | #??????????????????####????????????## | | ## ######?????????###????### ##???????????# | | # ### #?????????????## ###### #??????###### | | ##### ##????????##### #####??# ## | | #### #????????# ## #### ### | | ## #????##### ### | +----------------------------------------------------+ Best States ------------- Heat Dissipation 25 Energy Generation 15 Energy Capacity 275 Matter Stores 300 Matter Capacity 300 Sight Range 16 Terrain Scan Density 10 Armor Coverage 2150 Evasion (%) 41 Recoil Reduction 2 Item Schematics ----------------- None Robot Schematics ------------------ None Fabricated ------------ Nothing Repaired ---------- Nothing Studied --------- None Alien Tech Used ----------------- None Achievements -------------- None Challenges ------------ None Game ------ Seed FluxSlugRegenerator Manual? 0 Play Time 00:18:18 Cumulative 129.4 hours Start 2025.10.26 @ 13:13:51 End 2025.10.26 @ 13:31:43 Sessions 1 Manual Loads 0 Difficulty Rogue Special Mode None Game No. 130 Rogue 130 Adventurer 0 Explorer 0 Win Type - Total 1 Types 1/0/0/0/0/0/0/0/0/0 Lore% 61 Gallery% 51 Achievement% 35 Wizard Run 0 Options --------- Layout 0 ASCII 0 Keyboard 0 Movement Mouse Keybinds 0 Fullscreen 2 Font 18/X11 Map View 76x50 Zoom Use 7% Tactical HUD 1 Map Filters NONE Filters NONE Steam 1 RUN: 0b568df0-7490-4a4a-a47f-4d559b6f2da7